fUST/lending_fUST_20251004
["ID","MTS","AMOUNT","RATE_DAILY","PERIOD"]
[388956866,1759543839263,-737.03,0.00027397,9]
[388956867,1759543839273,-473.61221983,0.00027397,9]
[388956868,1759543839283,-500.0,0.00027397,9]
[388956869,1759543839293,-500.0,0.00027397,9]
[388956870,1759543839302,-550.81,0.00027397,9]
[388956871,1759543839312,-487.24973216,0.00027397,9]
[388956872,1759543839321,-500.0,0.00027397,9]
[388956873,1759543839331,-453.78741108,0.00027397,9]
[388956874,1759543839341,-500.0,0.00027397,9]
[388956875,1759543839350,-500.0,0.00027397,9]
[388956876,1759543839360,-500.0,0.00027397,9]
[388956877,1759543839369,-812.0,0.00027397,9]
[388956878,1759543839379,-500.0,0.00027397,9]
[388956879,1759543839388,-500.0,0.00027397,2]
[388956880,1759543839397,-500.0,0.00027397,9]
[388956881,1759543839406,-2347.29,0.00027397,9]
[388956882,1759543839415,-500.0,0.00027397,9]
[388956883,1759543839424,-500.0,0.00027397,9]
[388956884,1759543839433,-500.0,0.00027397,9]
[388956885,1759543839443,-500.0,0.00027397,9]
[388956886,1759543839451,-500.0,0.00027397,9]
[388956887,1759543839461,-1570.21,0.00027397,9]
[388956888,1759543839470,-485.23502919,0.00027397,9]
[388956889,1759543839479,-151.0,0.00027397,7]
[388956890,1759543839489,-151.0,0.00027397,7]
[388956891,1759543839498,-151.0,0.00027397,7]
[388956892,1759543839507,-153.415777,0.00027397,7]
[388956893,1759543839516,-1323.76,0.00027397,9]
[388956894,1759543839526,-500.0,0.00027397,9]
[388956895,1759543839535,-1080.48,0.00027397,9]
[388956896,1759543839544,-500.0,0.00027397,9]
[388956897,1759543839554,-485.97070948,0.00027397,9]
[388956898,1759543839563,-500.0,0.00027397,5]
[388956899,1759543839572,-500.0,0.00027397,9]
[388956900,1759543839581,-500.0,0.00027397,9]
[388956902,1759543839592,-500.0,0.00027397,9]
[388956903,1759543839605,-500.0,0.00027397,9]
[388956904,1759543839615,-766.84,0.00027397,9]
[388956905,1759543839624,-607.92,0.00027397,9]
[388956906,1759543839633,-500.0,0.00027397,9]
[388956907,1759543839644,-500.0,0.00027397,9]
[388956908,1759543839655,-500.0,0.00027397,9]
[388956909,1759543839664,-500.0,0.00027397,9]
[388956910,1759543839673,-151.0,0.00027397,7]
[388956911,1759543839682,-151.0,0.00027397,7]
[388956912,1759543839692,-151.0,0.00027397,7]
[388956913,1759543839701,-151.0,0.00027397,7]
[388956914,1759543839712,-199.068904,0.00027397,7]
[388956915,1759543839721,-500.0,0.00027397,9]
[388956916,1759543839731,-454.95496589,0.00027397,9]
[388956917,1759543839740,-151.0,0.00027397,7]
[388956918,1759543839749,-151.0,0.00027397,7]
[388956920,1759543839759,-500.0,0.00027397,9]
[388956921,1759543839769,-151.0,0.00027397,7]
[388956922,1759543839779,-151.0,0.00027397,7]
[388956923,1759543839788,-151.0,0.00027397,7]
[388956924,1759543839798,-151.0,0.00027397,7]
[388956926,1759543839807,-151.0,0.00027397,7]
[388956928,1759543839816,-500.0,0.00027397,9]
[388956930,1759543839826,-151.0,0.00027397,7]
[388956931,1759543839836,-500.0,0.00027397,9]
[388956932,1759543839845,-152.79694186,0.00027397,7]
[388956933,1759543839854,-500.0,0.00027397,9]
[388956934,1759543839864,-500.0,0.00027397,9]
[388956935,1759543839873,-500.0,0.00027397,9]
[388956936,1759543839883,-500.0,0.00027397,9]
[388956937,1759543839892,-500.0,0.00027397,9]
[388956938,1759543839901,-681.53,0.00027397,9]
[388956939,1759543839911,-500.0,0.00027397,9]
[388956940,1759543839921,-500.0,0.00027397,9]
[388956941,1759543839931,-500.0,0.00027397,9]
[388956942,1759543839940,-500.0,0.00027397,9]
[388956943,1759543839949,-500.0,0.00027397,9]
[388956944,1759543839958,-500.0,0.00027397,9]
[388956945,1759543839967,-500.0,0.00027397,7]
[388956946,1759543839978,-500.0,0.00027397,9]
[388956947,1759543839993,-824.93,0.00027397,9]
[388956948,1759543840002,-500.0,0.00027397,9]
[388956949,1759543840011,-500.0,0.00027397,9]
[388956950,1759543840021,-500.0,0.00027397,9]
[388956951,1759543840031,-500.0,0.00027397,9]
[388956952,1759543840041,-500.0,0.00027397,9]
[388956953,1759543840050,-500.0,0.00027397,9]
[388956954,1759543840061,-500.0,0.00027397,9]
[388956955,1759543840071,-500.0,0.00027397,9]
[388956956,1759543840080,-500.0,0.00027397,9]
[388956957,1759543840089,-500.0,0.00027397,9]
[388956958,1759543840099,-500.0,0.00027397,9]
[388956959,1759543840107,-500.0,0.00027397,9]
[388956960,1759543840117,-500.0,0.00027397,9]
[388956961,1759543840127,-500.0,0.00027397,9]
[388956962,1759543840136,-500.0,0.00027397,9]
[388956963,1759543840146,-500.0,0.00027397,9]
[388956964,1759543840156,-500.0,0.00027397,9]
[388956965,1759543840165,-500.0,0.00027397,9]
[388956966,1759543840175,-500.0,0.00027397,9]
[388956967,1759543840184,-483.98585311,0.00027397,9]
[388956968,1759543840193,-500.0,0.00027397,9]
[388956969,1759543840202,-500.0,0.00027397,9]
[388956970,1759543840211,-500.0,0.00027397,9]
[388956971,1759543840220,-500.0,0.00027397,9]
[388956972,1759543840230,-500.0,0.00027397,9]
[388956973,1759543840239,-500.0,0.00027397,9]
[388956974,1759543840248,-493.29142968,0.00027397,9]
[388956975,1759543840257,-500.0,0.00027397,9]
[388956976,1759543840266,-577.12,0.00027397,9]
[388956977,1759543840275,-500.0,0.00027397,9]
[388956978,1759543840284,-249.65339868,0.00027397,9]
[388956979,1759543840293,-500.0,0.00027397,9]
[388956980,1759543840302,-500.0,0.00027397,9]
[388956981,1759543840311,-500.0,0.00027397,9]
[388956982,1759543840320,-500.0,0.00027397,9]
[388956983,1759543840329,-1432.22,0.00027397,9]
[388956984,1759543840339,-1115.92,0.00027397,9]
[388956985,1759543840349,-500.0,0.00027397,9]
[388956986,1759543840358,-500.0,0.00027397,9]
[388956987,1759543840368,-1981.23,0.00027397,9]
[388956988,1759543840377,-500.0,0.00027397,9]
[388956989,1759543840386,-500.0,0.00027397,9]
[388956990,1759543840395,-4016.99,0.00027397,9]
[388956991,1759543840404,-520.0,0.00027397,3]
[388956992,1759543840414,-500.0,0.00027397,9]
[388956993,1759543840564,-1164.13,0.00027397,9]
[388956994,1759543840574,-500.0,0.00027397,9]
[388956995,1759543840583,-485.7486831,0.00027397,9]
[388956996,1759543840592,-500.0,0.00027397,9]
[388956997,1759543840602,-500.0,0.00027397,9]
[388956998,1759543840611,-500.0,0.00027397,9]
[388956999,1759543840620,-500.0,0.00027397,9]
[388957000,1759543840629,-500.0,0.00027397,9]
[388957001,1759543840638,-500.0,0.00027397,9]
[388957002,1759543840647,-489.61416106,0.00027397,9]
[388957003,1759543840657,-164.94558936,0.00027397,9]
[388957004,1759543840666,-600.0,0.00027397,9]
[388957005,1759543840676,-529.8,0.00027397,9]
[388957006,1759543840685,-500.0,0.00027397,9]
[388957007,1759543840694,-500.0,0.00027397,9]
[388957008,1759543840703,-300.86542138,0.00027397,9]
[388957009,1759543840713,-779.32,0.00027397,9]
[388957010,1759543840722,-500.0,0.00027397,9]
[388957011,1759543840733,-500.0,0.00027397,9]
[388957012,1759543840742,-500.0,0.00027397,9]
[388957013,1759543840751,-500.0,0.00027397,9]
[388957014,1759543840760,-500.0,0.00027397,9]
[388957015,1759543840769,-544.86,0.00027397,9]
[388957016,1759543840779,-998.59,0.00027397,9]
[388957017,1759543840788,-500.0,0.00027397,9]
[388957018,1759543840797,-500.0,0.00027397,9]
[388957019,1759543840806,-500.0,0.00027397,9]
[388957020,1759543840816,-373.60910581,0.00027397,9]
[388957021,1759543840825,-500.0,0.00027397,9]
[388957022,1759543840835,-901.07,0.00027397,9]
[388957023,1759543840844,-993.74,0.00027397,9]
[388957024,1759543840853,-500.0,0.00027397,9]
[388957025,1759543840863,-500.0,0.00027397,9]
[388957026,1759543840872,-1366.92,0.00027397,9]
[388957027,1759543840882,-500.0,0.00027397,9]
[388957028,1759543840891,-3647.95,0.00027397,9]
[388957029,1759543840902,-500.0,0.00027397,9]
[388957030,1759543840912,-500.0,0.00027397,9]
[388957031,1759543840922,-500.0,0.00027397,9]
[388957032,1759543840931,-500.0,0.00027397,9]
[388957033,1759543840941,-500.0,0.00027397,9]
[388957034,1759543840950,-500.0,0.00027397,9]
[388957035,1759543840959,-489.31854265,0.00027397,9]
[388957036,1759543840969,-500.0,0.00027397,9]
[388957037,1759543840978,-500.0,0.00027397,9]
[388957038,1759543840991,-500.0,0.00027397,9]
[388957039,1759543841000,-500.0,0.00027397,9]
[388957040,1759543841009,-500.0,0.00027397,9]
[388957041,1759543841018,-500.0,0.00027397,9]
[388957042,1759543841029,-410.856963,0.00027397,9]
[388957043,1759543841039,-500.0,0.00027397,9]
[388957044,1759543841050,-500.0,0.00027397,9]
[388957045,1759543841060,-533.21,0.00027397,9]
[388957046,1759543841071,-481.24751703,0.00027397,9]
[388957047,1759543841080,-500.0,0.00027397,9]
[388957048,1759543841090,-510.2,0.00027397,9]
[388957049,1759543841100,-374.23650633,0.00027397,9]
[388957050,1759543841110,-151.0,0.00027397,7]
[388957051,1759543841120,-151.0,0.00027397,7]
[388957052,1759543841129,-151.0,0.00027397,7]
[388957053,1759543841139,-151.0,0.00027397,7]
[388957054,1759543841148,-500.0,0.00027397,9]
[388957055,1759543841157,-232.082707,0.00027397,7]
[388957056,1759543841166,-500.0,0.00027397,9]
[388957057,1759543841175,-500.0,0.00027397,9]
[388957058,1759543841184,-1410.55,0.00027397,9]
[388957059,1759543841194,-721.63,0.00027397,9]
[388957060,1759543841203,-500.0,0.00027397,9]
[388957061,1759543841212,-500.0,0.00027397,9]
[388957062,1759543841222,-500.0,0.00027397,9]
[388957063,1759543841231,-500.0,0.00027397,9]
[388957064,1759543841240,-481.87974871,0.00027397,9]
[388957065,1759543841249,-500.0,0.00027397,9]
[388957066,1759543841259,-689.53,0.00027397,9]
[388957067,1759543841269,-500.0,0.00027397,9]
[388957068,1759543841279,-500.0,0.00027397,9]
[388957069,1759543841289,-500.0,0.00027397,9]
[388957070,1759543841299,-386.3465436,0.00027397,9]
[388957071,1759543841310,-500.0,0.00027397,9]
[388957072,1759543841319,-614.31,0.00027397,9]
[388957073,1759543841328,-500.0,0.00027397,9]
[388957074,1759543841337,-500.0,0.00027397,9]
[388957075,1759543841347,-500.0,0.00027397,9]
[388957076,1759543841356,-500.0,0.00027397,9]
[388957077,1759543841365,-500.0,0.00027397,9]
[388957078,1759543841374,-500.0,0.00027397,9]
[388957079,1759543841383,-332.73377822,0.00027397,9]
[388957080,1759543841392,-500.0,0.00027397,9]
[388957081,1759543841402,-500.0,0.00027397,9]
[388957082,1759543841410,-651.42,0.00027397,9]
[388957083,1759543841420,-500.0,0.00027397,9]
[388957084,1759543841429,-500.0,0.00027397,9]
[388957085,1759543841438,-500.0,0.00027397,9]
[388957086,1759543841447,-500.0,0.00027397,9]
[388957087,1759543841457,-500.0,0.00027397,9]
[388957088,1759543841466,-500.0,0.00027397,9]
[388957089,1759543841475,-500.0,0.00027397,9]
[388957090,1759543841484,-500.0,0.00027397,9]
[388957091,1759543841493,-838.06,0.00027397,9]
[388957092,1759543841503,-500.0,0.00027397,9]
[388957093,1759543841512,-937.05,0.00027397,9]
[388957094,1759543841521,-500.0,0.00027397,9]
[388957095,1759543841531,-500.0,0.00027397,7]
[388957096,1759543841540,-471.05232571,0.00027397,9]
[388957097,1759543841549,-500.0,0.00027397,9]
[388957098,1759543841558,-500.0,0.00027397,9]
[388957099,1759543841567,-692.13,0.00027397,9]
[388957100,1759543841576,-642.99,0.00027397,9]
[388957101,1759543841586,-500.0,0.00027397,9]
[388957102,1759543841596,-500.0,0.00027397,9]
[388957103,1759543841606,-500.0,0.00027397,9]
[388957104,1759543841615,-500.0,0.00027397,9]
[388957105,1759543841624,-500.0,0.00027397,9]
[388957106,1759543841633,-151.0,0.00027397,7]
[388957107,1759543841643,-151.0,0.00027397,7]
[388957108,1759543841652,-500.0,0.00027397,9]
[388957109,1759543841662,-500.0,0.00027397,9]
[388957110,1759543841671,-151.0,0.00027397,7]
[388957111,1759543841680,-151.0,0.00027397,7]
[388957112,1759543841690,-227.584072,0.00027397,7]
[388957113,1759543841699,-1360.5,0.00027397,9]
[388957114,1759543841707,-2949.61,0.00027397,9]
[388957115,1759543841716,-500.0,0.00027397,9]
[388957116,1759543841726,-500.0,0.00027397,9]
[388957117,1759543841735,-500.0,0.00027397,9]
[388957118,1759543841744,-500.0,0.00027397,9]
[388957119,1759543841753,-1000.0,0.00027397,9]
[388957120,1759543841763,-500.0,0.00027397,9]
[388957121,1759543841772,-500.0,0.00027397,9]
[388957122,1759543841781,-500.0,0.00027397,9]
[388957123,1759543841791,-2264.79,0.00027397,9]
[388957124,1759543841800,-498.25379368,0.00027397,9]
[388957131,1759543843092,-151.0,0.00027273,7]
[388957132,1759543843102,-151.0,0.00027273,7]
[388957133,1759543843111,-1.74620632,0.00027397,9]
[388957134,1759543843120,-113.90439768,0.00027397,9]
[388957141,1759543845917,-386.09560232,0.00027397,9]
[388957142,1759543845927,-77.90478919,0.00027397,9]
[388957229,1759545032214,-327.25473052,0.00025532,2]
[388957231,1759545032271,-172.74526948,0.00025532,2]
[388957233,1759545032282,-180.8807924,0.00026142,2]
[388957235,1759545032291,-46.37393812,0.00026785,2]
[388957239,1759545032303,-995.29272855,0.00026785,2]
[388957241,1759545032312,-160.0,0.00026786,2]
[388957243,1759545032321,-501.10257362,0.00026809,2]
[388957245,1759545032330,-168.0,0.000269,2]
[388957247,1759545032340,-506.95403223,0.00026953,2]
[388957249,1759545032350,-217.11158913,0.00026963,2]
[388957252,1759545032359,-293.52280873,0.00026995,2]
[388957254,1759545032370,-234.08929083,0.00026995,2]
[388957255,1759545032379,-1605.9603,0.00027,30]
[388957257,1759545032388,-397.88,0.00027043,3]
[388957259,1759545032398,-300.0,0.00027046,2]
[388957260,1759545032407,-50000.0,0.00027046,2]
[388957262,1759545032416,-166.0,0.00027047,2]
[388957264,1759545032425,-250.0,0.00027047,2]
[388957266,1759545032434,-250.0,0.00027047,2]
[388957267,1759545032443,-250.0,0.00027047,2]
[388957268,1759545032453,-250.0,0.00027047,2]
[388957269,1759545032462,-500.0,0.00027047,2]
[388957270,1759545032472,-500.0,0.00027047,2]
[388957271,1759545032482,-34015.04366538,0.00027053,2]
[388957298,1759545038019,-168.0,0.00027023,2]
[388957299,1759545038028,-1599.74384608,0.00027053,2]
[388957345,1759545736260,202.859558,0.00016438,2]
[388957359,1759546071292,501.03,0.00028767,120]
[388957549,1759546238354,-202.859558,0.00022783,2]
[388957550,1759546238364,-865.45,0.00024999,9]
[388957551,1759546238374,-500.0,0.00024999,9]
[388957552,1759546238383,-3358.09,0.00024999,9]
[388957553,1759546238393,-300.0,0.00025204,2]
[388957554,1759546238402,-1990.72478454,0.00025205,5]
[388957722,1759546240340,-1500.0,0.00025205,5]
[388957735,1759546240460,-321.93547502,0.00025205,5]
[388958017,1759546243494,-343.67951786,0.00025205,5]
[388958298,1759546246367,-6144.73155662,0.00025205,5]
[388958300,1759546246377,-494.86741044,0.00025273,9]
[388958302,1759546246388,-370.58258956,0.00025273,9]
[388958304,1759546246397,-500.0,0.00025273,9]
[388958306,1759546246407,-3358.09,0.00025273,9]
[388958308,1759546246416,-865.45,0.00025547,9]
[388958310,1759546246426,-492.94496355,0.00025547,9]
[388958312,1759546246438,-3358.09,0.00025547,9]
[388958314,1759546246447,-271.75234242,0.00025708,2]
[388958316,1759546246456,-300.0,0.00025708,20]
[388958318,1759546246466,-77.55080417,0.00025708,20]
[388958320,1759546246482,-222.44919583,0.00025708,20]
[388958322,1759546246491,-300.0,0.00025708,20]
[388958324,1759546246500,-300.0,0.00025708,20]
[388958326,1759546246511,-300.0,0.00025708,20]
[388958328,1759546246520,-300.0,0.00025708,20]
[388958330,1759546246529,-300.0,0.00025708,20]
[388958332,1759546246538,-300.0,0.00025708,20]
[388958334,1759546246548,-300.0,0.00025708,20]
[388958336,1759546246557,-300.0,0.00025708,20]
[388958338,1759546246566,-300.0,0.00025708,20]
[388958340,1759546246575,-300.0,0.00025708,20]
[388958343,1759546246584,-300.0,0.00025708,20]
[388958346,1759546246594,-300.0,0.00025708,20]
[388958348,1759546246602,-300.0,0.00025708,20]
[388958351,1759546246614,-865.45,0.00025821,9]
[388958353,1759546246623,-1646.4729149,0.00025821,9]
[388961657,1759546810461,374.68,0.00028767,120]
[388961662,1759546980562,151.0,0.0001803,2]
[388961674,1759547356123,151.0,0.0001803,2]
[388961708,1759547432625,-151.0,0.00018041,2]
[388961709,1759547432635,-151.0,0.00018053,2]
[388961710,1759547432646,-113.76167101,0.00018065,2]
[388961711,1759547432657,-37.23832899,0.00018065,2]
[388961712,1759547432666,-151.0,0.00018076,2]
[388961713,1759547432675,-125.95673811,0.00018088,2]
[388961768,1759547440488,-25.04326189,0.00018088,2]
[388961769,1759547440498,-151.0,0.000181,2]
[388961770,1759547440507,-194.41412531,0.00019999,2]
[388961789,1759547443618,-70.96587469,0.00019999,2]
[388961790,1759547443627,-265.38,0.00020099,2]
[388961791,1759547443637,-250.0,0.00021292,2]
[388961792,1759547443647,-769.0,0.00021917,2]
[388961793,1759547443656,-3854.88575979,0.00021918,2]
[388961799,1759547638033,10000.0,0.00018033,2]
[388961800,1759547647635,10000.0,0.00018033,2]
[388961801,1759547656711,10000.0,0.00018033,2]
[388961802,1759547665264,10000.0,0.00018033,2]
[388961803,1759547673631,10000.0,0.00018033,2]
[388961804,1759547681836,10000.0,0.00018033,2]
[388961805,1759547691276,10000.0,0.00018033,2]
[388961806,1759547703318,10000.0,0.00018033,2]
[388961807,1759547714196,9000.0,0.00018033,2]
[388961812,1759547951938,10000.0,0.00028767,120]
[388961816,1759548309724,1000.0,0.0002876,120]
[388961825,1759548517325,5655.89653812,0.0002,120]
[388961828,1759548551748,2001.0,0.0002876,120]
[388961869,1759548631869,-1437.2923729,0.00021602,2]
[388961871,1759548631878,-1437.2923729,0.00021756,2]
[388961873,1759548631888,-3115.11424021,0.00021918,2]
[388961875,1759548631897,-179.00437738,0.00023359,2]
[388961877,1759548631907,-171.77634948,0.00023836,11]
[388961879,1759548631915,-359.09216723,0.000239,2]
[388961881,1759548631925,-644.49305804,0.000239,2]
[388961883,1759548631934,-300.0,0.00023989,2]
[388961885,1759548631943,-15152.76939578,0.0002399,2]
[388962027,1759548637643,-28592.79301424,0.0002399,2]
[388962028,1759548637653,-167.83,0.00024,14]
[388962029,1759548637663,-359.09216723,0.0002423,2]
[388962030,1759548637672,-593.0,0.00024491,2]
[388962031,1759548637682,-291.94231672,0.00024558,2]
[388962032,1759548637692,-500.0,0.00024558,2]
[388962033,1759548637701,-500.0,0.00024558,2]
[388962034,1759548637711,-363.96449181,0.00024558,2]
[388962035,1759548637722,-136.03550819,0.00024558,2]
[388962036,1759548637731,-500.0,0.00024558,2]
[388962037,1759548637741,-500.0,0.00024558,2]
[388962038,1759548637750,-500.0,0.00024558,2]
[388962039,1759548637759,-500.0,0.00024558,2]
[388962040,1759548637769,-500.0,0.00024558,2]
[388962041,1759548637779,-500.0,0.00024558,2]
[388962042,1759548637788,-500.0,0.00024558,2]
[388962043,1759548637798,-500.0,0.00024558,2]
[388962044,1759548637808,-500.0,0.00024558,2]
[388962045,1759548637818,-500.0,0.00024558,2]
[388962046,1759548637827,-500.0,0.00024558,2]
[388962047,1759548637837,-500.0,0.00024558,2]
[388962048,1759548637846,-500.0,0.00024558,2]
[388962049,1759548637856,-500.0,0.00024558,2]
[388962050,1759548637868,-500.0,0.00024558,2]
[388962051,1759548637877,-500.0,0.00024558,2]
[388962052,1759548637886,-500.0,0.00024558,2]
[388962053,1759548637896,-500.0,0.00024558,2]
[388962054,1759548637906,-500.0,0.00024558,2]
[388962055,1759548637915,-500.0,0.00024558,2]
[388962056,1759548637924,-500.0,0.00024558,2]
[388962057,1759548637934,-500.0,0.00024558,2]
[388962058,1759548637943,-500.0,0.00024558,2]
[388962059,1759548637952,-500.0,0.00024558,2]
[388962060,1759548637964,-500.0,0.00024558,2]
[388962061,1759548637973,-500.0,0.00024558,2]
[388962062,1759548637983,-500.0,0.00024558,2]
[388962063,1759548637992,-163.75482154,0.00024558,2]
[388962064,1759548638002,-500.0,0.00024558,2]
[388962065,1759548638011,-500.0,0.00024558,2]
[388962066,1759548638021,-500.0,0.00024558,2]
[388962067,1759548638031,-500.0,0.00024558,2]
[388962068,1759548638041,-480.66447931,0.00024558,2]
[388962069,1759548638051,-500.0,0.00024558,2]
[388962070,1759548638060,-500.0,0.00024558,2]
[388962071,1759548638070,-627.01578627,0.00024558,2]
[388962072,1759548638080,-500.0,0.00024558,2]
[388962073,1759548638090,-500.0,0.00024558,2]
[388962074,1759548638101,-500.0,0.00024558,2]
[388962075,1759548638111,-500.0,0.00024558,2]
[388962076,1759548638130,-500.0,0.00024558,2]
[388962077,1759548638146,-500.0,0.00024558,2]
[388962078,1759548638159,-500.0,0.00024558,2]
[388962079,1759548638179,-500.0,0.00024558,2]
[388962080,1759548638192,-224.61068444,0.00024558,2]
[388962081,1759548638202,-293.68431164,0.00024558,2]
[388962082,1759548638211,-500.0,0.00024558,2]
[388962083,1759548638222,-359.09216723,0.00024559,2]
[388962084,1759548638231,-20670.74447168,0.00024559,2]
[388962085,1759548638241,-151.0,0.00024559,7]
[388962086,1759548638250,-151.0,0.00024559,7]
[388962087,1759548638260,-151.0,0.00024559,7]
[388962088,1759548638270,-151.0,0.00024559,7]
[388962089,1759548638279,-1065.78290116,0.0002456,2]
[388962090,1759548638288,-291.94231668,0.00024624,2]
[388962091,1759548638298,-174.86,0.00024647,10]
[388962092,1759548638307,-874.32,0.00024647,10]
[388962093,1759548638316,-795.76,0.0002465,3]
[388962094,1759548638326,-281.35517349,0.00024656,2]
[388962095,1759548638335,-201.82960157,0.00024656,2]
[388962096,1759548638344,-500.0,0.00024657,9]
[388962097,1759548638355,-500.0,0.00024657,9]
[388962098,1759548638364,-500.0,0.00024657,9]
[388962099,1759548638373,-960.96,0.00024657,9]
[388962100,1759548638383,-500.0,0.00024657,9]
[388962101,1759548638392,-500.0,0.00024657,9]
[388962102,1759548638402,-500.0,0.00024657,9]
[388962103,1759548638411,-500.0,0.00024657,9]
[388962104,1759548638420,-500.0,0.00024657,9]
[388962105,1759548638430,-500.0,0.00024657,9]
[388962106,1759548638439,-485.57101425,0.00024657,9]
[388962107,1759548638448,-500.0,0.00024657,9]
[388962108,1759548638457,-500.0,0.00024657,9]
[388962109,1759548638467,-712.51,0.00024657,9]
[388962110,1759548638476,-1106.89,0.00024657,9]
[388962111,1759548638485,-500.0,0.00024657,9]
[388962112,1759548638494,-667.06,0.00024657,9]
[388962113,1759548638503,-1788.75,0.00024657,9]
[388962114,1759548638512,-151.0,0.00024657,7]
[388962115,1759548638522,-151.0,0.00024657,7]
[388962116,1759548638531,-151.0,0.00024657,7]
[388962117,1759548638540,-151.0,0.00024657,7]
[388962118,1759548638550,-151.0,0.00024657,7]
[388962119,1759548638559,-1820.06,0.00024657,9]
[388962120,1759548638568,-500.0,0.00024657,9]
[388962121,1759548638577,-494.671858,0.00024657,7]
[388962122,1759548638586,-494.671858,0.00024657,7]
[388962123,1759548638596,-494.671858,0.00024657,7]
[388962124,1759548638605,-494.671858,0.00024657,7]
[388962125,1759548638614,-494.671858,0.00024657,7]
[388962126,1759548638623,-494.671858,0.00024657,7]
[388962127,1759548638633,-1859.676022,0.00024657,7]
[388962128,1759548638642,-494.671858,0.00024657,7]
[388962129,1759548638651,-1859.676022,0.00024657,7]
[388962130,1759548638660,-494.671858,0.00024657,7]
[388962131,1759548638669,-1859.676022,0.00024657,7]
[388962132,1759548638679,-494.671858,0.00024657,7]
[388962133,1759548638688,-1859.676022,0.00024657,7]
[388962134,1759548638699,-494.671858,0.00024657,7]
[388962135,1759548638708,-1859.676022,0.00024657,7]
[388962136,1759548638718,-494.671858,0.00024657,7]
[388962137,1759548638727,-1859.676022,0.00024657,7]
[388962138,1759548638737,-494.671858,0.00024657,7]
[388962139,1759548638747,-1859.676022,0.00024657,7]
[388962140,1759548638757,-494.671858,0.00024657,7]
[388962141,1759548638766,-1859.676022,0.00024657,7]
[388962142,1759548638777,-494.671858,0.00024657,7]
[388962143,1759548638786,-1859.676022,0.00024657,7]
[388962144,1759548638795,-494.671858,0.00024657,7]
[388962145,1759548638805,-1859.676022,0.00024657,7]
[388962146,1759548638814,-494.671858,0.00024657,7]
[388962147,1759548638824,-1859.676022,0.00024657,7]
[388962148,1759548638834,-1859.676022,0.00024657,7]
[388962149,1759548638844,-494.671858,0.00024657,7]
[388962150,1759548638854,-1859.676022,0.00024657,7]
[388962151,1759548638864,-494.671858,0.00024657,7]
[388962152,1759548638875,-1859.676022,0.00024657,7]
[388962153,1759548638884,-494.671858,0.00024657,7]
[388962154,1759548638894,-1859.676022,0.00024657,7]
[388962155,1759548638903,-494.671849,0.00024657,7]
[388962156,1759548638913,-1859.676022,0.00024657,7]
[388962157,1759548638922,-1859.676022,0.00024657,7]
[388962158,1759548638932,-1859.676022,0.00024657,7]
[388962159,1759548638944,-1859.676022,0.00024657,7]
[388962160,1759548638954,-1859.676028,0.00024657,7]
[388962161,1759548638964,-151.0,0.00024657,7]
[388962162,1759548638974,-151.0,0.00024657,7]
[388962163,1759548638983,-151.0,0.00024657,7]